bitfinex-derivatives/quotes_BTCF0:USTF0_20241130
["timestamp","ask_amount","ask_price","bid_price","bid_amount"]
[1732930628088,0.051578,96905.0,96904.0,0.0042604]
[1732930628291,0.051578,96905.0,96904.0,0.01095266]
[1732930628809,0.051579,96904.0,96903.0,0.001]
[1732930629092,0.23068336,96904.0,96903.0,0.001]
[1732930629985,0.23068336,96904.0,96891.0,0.0323]
[1732930629986,0.051585,96892.0,96891.0,0.0323]
[1732930630188,0.35040165,96892.0,96891.0,0.00416422]
[1732930630397,0.35040165,96892.0,96883.0,8.637e-05]
[1732930630398,0.051589,96884.0,96883.0,0.05167637]
[1732930630587,0.13446752,96884.0,96883.0,0.05584089]
[1732930630788,0.13446752,96884.0,96883.0,0.00425089]
[1732930631194,0.35039439,96884.0,96883.0,0.00425089]
[1732930631397,0.13446752,96884.0,96883.0,8.637e-05]
[1732930632099,0.35039439,96884.0,96883.0,8.637e-05]
[1732930632600,0.13446752,96884.0,96883.0,8.637e-05]
[1732930632904,0.13446752,96884.0,96883.0,0.00424297]
[1732930633246,0.13446752,96884.0,96883.0,0.05167637]
[1732930633496,0.13446752,96884.0,96883.0,0.05367637]
[1732930633699,0.13446752,96884.0,96883.0,0.05784141]
[1732930633896,0.13446752,96884.0,96883.0,0.05367637]
[1732930634401,0.13446752,96884.0,96883.0,0.05784101]
[1732930635199,0.13446752,96884.0,96883.0,0.05367637]
[1732930635792,0.13446752,96884.0,96883.0,0.07281444]
[1732930635994,0.051589,96884.0,96883.0,0.258208]
[1732930636201,0.051589,96884.0,96883.0,0.07281444]
[1732930636593,0.051589,96884.0,96883.0,0.258208]
[1732930637192,0.051589,96884.0,96883.0,0.07281444]
[1732930639896,0.3608,96887.0,96883.0,0.02122444]
[1732930640097,0.3608,96887.0,96886.0,0.051588]
[1732930640288,0.3608,96887.0,96886.0,0.07072607]
[1732930643691,0.412388,96887.0,96886.0,0.25620513]
[1732930643895,0.412388,96887.0,96886.0,0.05574737]
[1732930644299,0.412388,96887.0,96886.0,0.00415937]
[1732930645199,0.49541678,96887.0,96886.0,0.00415937]
[1732930645918,0.412388,96887.0,96886.0,0.00415937]
[1732930647399,0.49542052,96887.0,96883.0,8.637e-05]
[1732930647593,0.051589,96884.0,96883.0,8.637e-05]
[1732930647795,0.051589,96884.0,96883.0,0.00426694]
[1732930648605,0.051589,96884.0,96883.0,0.00108637]
[1732930648897,0.13686211,96884.0,96883.0,0.00108637]
[1732930649904,0.13686211,96884.0,96883.0,0.00526318]
[1732930650900,0.051589,96884.0,96883.0,0.01360962]
[1732930651299,0.051589,96884.0,96883.0,0.0077621]
[1732930651603,0.051589,96884.0,96883.0,0.00108637]
[1732930652260,0.051589,96884.0,96883.0,0.18662499]
[1732930652909,0.051589,96884.0,96883.0,0.00108637]
[1732930653803,0.051589,96884.0,96883.0,0.01207359]
[1732930657542,0.051589,96884.0,96883.0,0.07218638]
[1732930657708,0.051589,96884.0,96883.0,0.02059638]
[1732930657906,0.51489536,96887.0,96883.0,0.02059638]
[1732930657907,0.3608,96887.0,96883.0,0.02059638]
[1732930658108,0.3608,96887.0,96886.0,0.051588]
[1732930658412,0.3608,96887.0,96886.0,0.07109801]
[1732930658413,0.412388,96887.0,96886.0,0.07109801]
[1732930658797,0.15409536,96891.0,96886.0,0.07109801]
[1732930659005,0.15421644,96888.0,96887.0,0.01951001]
[1732930659210,0.15421644,96889.0,96888.0,0.051587]
[1732930659399,0.20580244,96891.0,96890.0,0.051586]
[1732930659644,0.051586,96891.0,96890.0,0.051586]
[1732930659806,0.051586,96891.0,96890.0,0.07131349]
[1732930661112,0.051586,96891.0,96890.0,0.07118868]
[1732930663714,0.15421644,96892.0,96891.0,0.051586]
[1732930663905,0.15421644,96893.0,96892.0,0.051585]
[1732930664217,0.051583,96897.0,96896.0,0.051583]
[1732930664412,0.051583,96897.0,96896.0,0.07118568]
[1732930666210,0.051583,96897.0,96896.0,0.05584334]
[1732930666608,0.14324745,96897.0,96896.0,0.05584334]
[1732930667113,0.14324745,96897.0,96896.0,0.06262338]
[1732930667315,0.14324745,96897.0,96896.0,0.05584334]
[1732930667515,0.23649487,96897.0,96896.0,0.05584334]
[1732930667813,0.23649487,96897.0,96896.0,0.06262235]
[1732930668315,0.23649487,96897.0,96896.0,0.05584334]
[1732930669206,0.23649487,96897.0,96896.0,0.06269349]
[1732930669407,0.051583,96897.0,96896.0,0.06269349]
[1732930669616,0.051583,96897.0,96896.0,0.05584334]
[1732930669813,0.14314228,96897.0,96896.0,0.05584334]
[1732930670323,0.06382215,96902.0,96901.0,0.05158]
[1732930670515,0.051581,96902.0,96901.0,0.05584034]
[1732930671319,0.19355549,96902.0,96901.0,0.05584034]
[1732930672019,0.14337588,96902.0,96901.0,0.05584034]
[1732930672219,0.051581,96902.0,96901.0,0.05584034]
[1732930673419,0.0015485,96904.0,96903.0,0.051579]
[1732930673718,0.0531275,96904.0,96903.0,0.05590329]
[1732930674314,0.0531275,96904.0,96903.0,0.01125043]
[1732930674825,0.0531275,96904.0,96886.0,0.24719141]
[1732930674826,0.36553143,96904.0,96886.0,0.1854013]
[1732930675026,0.36553143,96904.0,96874.0,0.01218616]
[1732930675027,0.051589,96884.0,96881.0,0.1854013]
[1732930675216,0.051589,96884.0,96873.0,0.5462013]
[1732930675482,0.051589,96884.0,96876.0,0.051593]
[1732930675624,0.2055622,96884.0,96873.0,0.3608]
[1732930675928,0.205527,96884.0,96879.0,0.051592]
[1732930676313,0.205527,96884.0,96873.0,0.3608]
[1732930676517,0.205527,96884.0,96881.0,0.051591]
[1732930676925,0.205527,96884.0,96883.0,0.00108637]
[1732930677320,0.21747322,96884.0,96883.0,0.00108637]
[1732930678230,0.06353522,96884.0,96883.0,0.00108637]
[1732930678823,0.21747322,96884.0,96883.0,0.00108637]
[1732930680334,0.06353522,96884.0,96883.0,0.00108637]
[1732930681031,0.16207771,96884.0,96883.0,0.00108637]
[1732930681232,0.24695153,96884.0,96883.0,0.00108637]
[1732930681796,0.36376894,96884.0,96883.0,0.00108637]
[1732930681926,0.14840904,96884.0,96883.0,0.00108637]
[1732930682133,0.14840904,96884.0,96883.0,0.05267637]
[1732930682837,0.13646282,96884.0,96883.0,0.05267637]
[1732930684126,0.13646282,96884.0,96883.0,0.00108637]
[1732930687040,0.051589,96884.0,96883.0,0.00108637]
[1732930687835,0.13616401,96884.0,96883.0,0.00108637]
[1732930688637,0.35152391,96884.0,96883.0,0.00108637]
[1732930689139,0.051589,96884.0,96883.0,0.00108637]
[1732930689936,0.051589,96884.0,96860.0,0.0015485]
[1732930689937,0.3608,96884.0,96860.0,0.0015485]
[1732930690235,0.051602,96861.0,96860.0,0.0015485]
[1732930690431,0.051602,96861.0,96860.0,0.00581133]
[1732930690851,0.051602,96861.0,96860.0,0.05586483]
[1732930691027,0.051602,96861.0,96860.0,0.00426283]
[1732930691233,0.051602,96861.0,96860.0,0.01026283]
[1732930692054,0.051602,96861.0,96860.0,0.01726283]
[1732930694340,0.051602,96861.0,96860.0,0.013]
[1732930694543,0.051602,96861.0,96860.0,0.01719361]
[1732930698432,0.051602,96861.0,96860.0,0.06879561]
[1732930698640,0.20978778,96870.0,96860.0,0.01719361]
[1732930698946,0.17447707,96866.0,96865.0,0.051599]
[1732930699141,0.12287807,96867.0,96866.0,0.051599]
[1732930699345,0.051598,96869.0,96868.0,0.051597]
[1732930699536,0.051598,96869.0,96868.0,0.05586505]
[1732930699737,0.051598,96869.0,96868.0,0.00426805]
[1732930700141,0.051598,96869.0,96868.0,0.05586605]
[1732930700742,0.051598,96869.0,96868.0,0.051598]
[1732930700951,0.051598,96869.0,96868.0,0.05586495]
[1732930701745,0.051598,96869.0,96868.0,0.06386495]
[1732930703358,0.051598,96869.0,96868.0,0.07076077]
[1732930703853,0.051598,96869.0,96868.0,0.07935565]
[1732930704449,0.53527799,96884.0,96875.0,0.051593]
[1732930704450,0.051594,96876.0,96875.0,0.051593]
[1732930704650,0.051594,96876.0,96875.0,0.06275577]
[1732930705045,0.051594,96876.0,96875.0,0.01975124]
[1732930705253,0.051594,96876.0,96875.0,0.01116277]
[1732930705254,0.412394,96876.0,96875.0,0.01116277]
[1732930705442,0.051597,96869.0,96860.0,0.00418789]
[1732930705664,0.051597,96869.0,96850.0,8.237e-05]
[1732930705665,0.051607,96851.0,96850.0,8.237e-05]
[1732930705844,0.051607,96851.0,96850.0,0.00877878]
[1732930706251,0.051607,96851.0,96850.0,8.237e-05]
[1732930708249,0.3608,96853.0,96850.0,0.00908237]
[1732930708558,0.00012899,96868.0,96852.0,0.3608]
[1732930708851,0.36092899,96868.0,96863.0,0.18533385]
[1732930709044,0.36092899,96868.0,96862.0,0.0516]
[1732930709354,0.36092899,96868.0,96863.0,0.00864587]
[1732930709556,0.36092899,96868.0,96862.0,0.0516]
[1732930709864,0.36092899,96868.0,96863.0,0.00861112]
[1732930709865,0.36192899,96868.0,96863.0,0.00861112]
[1732930710054,0.36192899,96868.0,96858.0,0.18533385]
[1732930710355,0.36192899,96868.0,96859.0,0.00861113]
[1732930710542,0.36192899,96868.0,96865.0,0.051599]
[1732930710944,0.36192899,96868.0,96852.0,0.26029969]
[1732930710945,0.36192899,96868.0,96858.0,0.18533385]
[1732930711146,0.36192899,96868.0,96862.0,0.002]
[1732930711147,0.0516,96864.0,96862.0,0.002]
[1732930711453,0.0516,96864.0,96863.0,0.00873108]
[1732930711651,0.0516,96864.0,96862.0,0.007]
[1732930711843,0.0516,96864.0,96862.0,0.002]
[1732930712048,0.0321,96867.0,96853.0,0.23693885]
[1732930712049,0.051601,96862.0,96853.0,0.23693885]
[1732930712242,0.051601,96862.0,96855.0,0.051604]
[1732930712441,0.051604,96856.0,96851.0,0.3608]
[1732930712649,0.051604,96856.0,96852.0,0.06038541]
[1732930712853,0.051604,96856.0,96853.0,0.00877941]
[1732930713076,0.051604,96856.0,96854.0,0.00877941]
[1732930713359,0.051604,96856.0,96852.0,0.051606]
[1732930713360,0.051604,96856.0,96855.0,0.00877941]
[1732930713653,0.3608,96860.0,96855.0,0.00877941]
[1732930713952,0.3608,96860.0,96859.0,0.051603]
[1732930715243,0.3608,96860.0,96859.0,0.054603]
[1732930716253,0.3608,96860.0,96859.0,0.060603]
[1732930716643,0.0321,96867.0,96866.0,0.051599]
[1732930716952,0.36092899,96868.0,96859.0,0.0763591]
[1732930716953,0.37336481,96868.0,96867.0,0.051598]
[1732930717751,0.37336481,96868.0,96867.0,0.07173073]
[1732930717952,0.01256481,96868.0,96867.0,0.07869836]
[1732930718159,0.00012899,96868.0,96867.0,0.26403221]
[1732930718359,0.00012899,96868.0,96867.0,0.08742647]
[1732930718653,0.00012899,96868.0,96867.0,0.08942647]
[1732930718861,0.00012899,96868.0,96867.0,0.08169836]
[1732930724561,0.13528948,96868.0,96867.0,0.02311937]
[1732930726062,0.05172699,96868.0,96867.0,0.02311937]
[1732930726561,0.05172699,96868.0,96867.0,0.01875719]
[1732930726955,0.05172699,96868.0,96867.0,0.02316782]
[1732930727359,0.05172699,96868.0,96867.0,0.03020663]
[1732930727654,0.05172699,96868.0,96867.0,0.02315566]
[1732930727855,0.05172699,96868.0,96867.0,0.01448354]
[1732930730066,0.0640609,96868.0,96867.0,0.01448354]
[1732930731159,0.0640609,96868.0,96867.0,0.06608154]
[1732930731160,0.00012899,96868.0,96867.0,0.06608154]
[1732930731760,0.15406904,96868.0,96867.0,0.06608154]
[1732930732362,0.20566704,96868.0,96867.0,0.06608154]
[1732930733168,0.05172699,96868.0,96867.0,0.06608154]
[1732930736874,0.05172699,96868.0,96867.0,0.07490677]
[1732930737569,0.05172699,96868.0,96867.0,0.05899647]
[1732930737765,0.05172699,96868.0,96867.0,0.07489741]
[1732930738573,0.00012899,96868.0,96867.0,0.07489741]
[1732930740267,0.00012899,96868.0,96867.0,0.10669741]
[1732930740767,0.00012899,96868.0,96867.0,0.11889343]
[1732930740969,0.00012899,96868.0,96867.0,0.10669741]
[1732930743966,0.00012899,96868.0,96867.0,0.086398]
[1732930744161,0.00012899,96868.0,96867.0,0.10245101]
[1732930744359,0.00012899,96868.0,96867.0,0.10690869]
[1732930744855,0.00012899,96868.0,96867.0,0.086398]
[1732930744972,0.00012899,96868.0,96867.0,0.10701439]
[1732930746573,0.08297671,96868.0,96867.0,0.10701439]
[1732930747367,0.13457471,96868.0,96867.0,0.07521439]
[1732930747568,0.05172699,96868.0,96867.0,0.07521439]
[1732930747994,0.1346037,96868.0,96867.0,0.07521439]
[1732930748171,0.13467058,96868.0,96867.0,0.02361639]
[1732930748678,0.13467058,96868.0,96867.0,0.01465123]
[1732930748874,0.13467058,96868.0,96867.0,0.02372938]
[1732930749073,0.26742919,96868.0,96867.0,0.02372938]
[1732930749282,0.05172699,96868.0,96867.0,0.02372938]
[1732930750578,0.06400049,96868.0,96867.0,0.02372938]
[1732930751475,0.06400049,96868.0,96867.0,0.07532738]
[1732930753987,0.24888809,96868.0,96867.0,0.07532738]
[1732930754486,0.24888809,96868.0,96867.0,0.02369989]
[1732930755681,0.06400049,96868.0,96867.0,0.02369989]
[1732930755879,0.06400049,96868.0,96867.0,0.0590968]
[1732930755880,0.01240249,96868.0,96867.0,0.0590968]
[1732930756181,0.25918893,96868.0,96867.0,0.0590968]
[1732930756406,0.01240249,96868.0,96867.0,0.06631814]
[1732930756572,0.19149069,96868.0,96867.0,0.06631814]
[1732930756773,0.24308869,96868.0,96867.0,0.0663319]
[1732930756980,0.14687153,96868.0,96867.0,0.0663319]
[1732930757289,0.09527353,96868.0,96867.0,0.0663319]
[1732930760294,0.09527353,96868.0,96867.0,0.06646668]
[1732930761894,0.2987029,96868.0,96867.0,0.0757692]
[1732930762191,0.08300003,96868.0,96867.0,0.0757692]
[1732930764190,0.00012899,96868.0,96867.0,0.0757692]
[1732930765185,0.00012899,96868.0,96867.0,0.08812147]
[1732930766996,0.00012899,96868.0,96867.0,0.07899192]
[1732930767200,0.00012899,96868.0,96867.0,0.08825749]
[1732930771199,0.00012899,96868.0,96867.0,0.09242255]
[1732930771886,0.00012899,96868.0,96867.0,0.08007028]
[1732930773187,0.00012899,96868.0,96867.0,0.07590522]
[1732930773791,0.00012899,96868.0,96867.0,0.07290522]
[1732930773999,0.051607,96851.0,96847.0,0.18700093]
[1732930774198,0.051607,96851.0,96850.0,0.05168937]
[1732930776430,0.052607,96851.0,96850.0,0.06068937]
[1732930776593,0.052607,96851.0,96850.0,0.06568937]
[1732930777808,0.052607,96851.0,96841.0,0.00416449]
[1732930777809,0.35302301,96851.0,96841.0,0.18961675]
[1732930777993,0.54566764,96843.0,96825.0,0.3608]
[1732930778315,0.05162,96826.0,96825.0,0.3608]
[1732930778497,0.05162,96826.0,96825.0,0.412421]
[1732930778903,0.05162,96826.0,96825.0,0.3608]
[1732930779295,0.051623,96820.0,96819.0,0.31295482]
[1732930779624,0.051623,96820.0,96819.0,0.0331]
[1732930780187,0.051623,96820.0,96817.0,7.73e-05]
[1732930780394,0.00011209,96819.0,96817.0,7.73e-05]
[1732930781109,0.03151209,96819.0,96817.0,7.73e-05]
[1732930781828,0.03151209,96819.0,96818.0,0.0035493]
[1732930782018,0.03151209,96819.0,96818.0,0.002]
[1732930782701,0.03151209,96819.0,96818.0,0.007]
[1732930784295,0.004,96808.0,96784.0,0.61223907]
[1732930784495,0.412433,96801.0,96788.0,0.05164]
[1732930784811,0.412433,96801.0,96785.0,0.0301]
[1732930786008,0.413433,96801.0,96800.0,0.107]
[1732930786395,0.413433,96801.0,96800.0,0.114]
[1732930787107,0.413433,96801.0,96800.0,0.111]
[1732930787499,0.42586228,96801.0,96800.0,0.111]
[1732930790409,0.3618,96801.0,96800.0,0.111]
[1732930790704,0.3608,96809.0,96804.0,0.051632]
[1732930790705,0.05163,96809.0,96804.0,0.051632]
[1732930790911,0.05163,96809.0,96805.0,0.00417795]
[1732930791218,0.05163,96809.0,96806.0,0.00417795]
[1732930791404,0.05163,96809.0,96807.0,0.00417795]
[1732930791606,0.05163,96809.0,96804.0,0.051632]
[1732930791607,0.05163,96809.0,96808.0,0.00417795]
[1732930792315,0.05263,96809.0,96808.0,0.00417795]
[1732930792916,0.05163,96809.0,96808.0,0.0081907]
[1732930793110,0.05163,96809.0,96808.0,0.0598207]
[1732930793307,0.05163,96809.0,96808.0,0.06649979]
[1732930794205,0.3608,96810.0,96808.0,0.06649979]
[1732930794206,0.3608,96810.0,96809.0,0.05163]
[1732930794403,0.3608,96810.0,96809.0,0.07083532]
[1732930794711,0.00011209,96819.0,96810.0,0.051629]
[1732930794910,0.051622,96823.0,96821.0,0.051623]
[1732930795108,0.051622,96823.0,96818.0,0.3608]
[1732930795109,0.3608,96846.0,96822.0,0.01920398]
[1732930795314,0.3608,96846.0,96831.0,0.3608]
[1732930795639,0.051617,96833.0,96832.0,0.01086979]
[1732930796011,0.05172086,96833.0,96832.0,0.01086979]
[1732930796323,0.05172086,96833.0,96832.0,0.01064675]
[1732930796610,0.05172086,96833.0,96832.0,0.00409435]
[1732930797009,0.05372086,96833.0,96832.0,0.00409435]
[1732930797810,0.05372086,96833.0,96821.0,0.001]
[1732930797811,0.051623,96822.0,96821.0,0.001]
[1732930798017,0.051623,96822.0,96821.0,0.01168596]
[1732930798515,0.051623,96822.0,96821.0,0.01068596]
[1732930799316,0.054623,96822.0,96821.0,0.01068596]
[1732930800415,0.056623,96822.0,96821.0,0.01068596]
[1732930801241,0.056623,96822.0,96821.0,0.00410943]
[1732930802115,0.056623,96822.0,96821.0,0.00401406]
[1732930802416,0.056623,96822.0,96821.0,0.00395953]
[1732930804109,0.051628,96811.0,96810.0,0.412429]
[1732930804341,0.051628,96811.0,96810.0,0.37100097]
[1732930805211,0.051628,96811.0,96810.0,0.38199444]
[1732930805410,0.051628,96811.0,96810.0,0.3831905]
[1732930806306,0.051628,96811.0,96810.0,0.37519324]
[1732930807419,0.051628,96811.0,96810.0,0.38319982]
[1732930808719,0.051628,96811.0,96810.0,0.02266485]
[1732930809386,0.051628,96811.0,96810.0,0.00805648]
[1732930810025,0.23468867,96811.0,96810.0,0.00805648]
[1732930810517,0.051628,96811.0,96810.0,0.00805648]
[1732930810721,0.051628,96811.0,96810.0,0.004]
[1732930812016,0.2359617,96811.0,96810.0,0.0080186]
[1732930812228,0.1327901,96811.0,96810.0,0.004]
[1732930812414,0.0811621,96811.0,96800.0,0.1]
[1732930812718,0.0811621,96811.0,96780.0,8.774e-05]
[1732930812719,0.051644,96781.0,96780.0,8.774e-05]
[1732930813020,0.051644,96781.0,96780.0,0.0187277]
[1732930813570,0.051644,96781.0,96780.0,0.01062196]
[1732930814326,0.051644,96781.0,96780.0,0.01562196]
[1732930814529,0.051644,96781.0,96780.0,0.02462196]
[1732930814530,0.052644,96781.0,96780.0,0.02462196]
[1732930814924,0.051644,96781.0,96780.0,0.01562196]
[1732930815231,0.052644,96781.0,96780.0,0.02462196]
[1732930815425,0.052644,96781.0,96780.0,0.02447496]
[1732930816019,0.052644,96781.0,96780.0,0.01408774]
[1732930816225,0.052644,96781.0,96780.0,0.02047933]
[1732930816426,0.052644,96781.0,96780.0,0.02447318]
[1732930816623,0.052644,96781.0,96780.0,0.03247641]
[1732930822324,0.052644,96781.0,96780.0,0.02466903]
[1732930822525,0.052644,96781.0,96780.0,0.03281103]
[1732930827429,0.052644,96781.0,96780.0,0.03682127]
[1732930828438,0.052644,96781.0,96780.0,0.03281103]
[1732930830039,0.052644,96781.0,96780.0,0.08445603]
[1732930831431,0.001,96781.0,96780.0,0.07631403]
[1732930831847,0.052644,96781.0,96780.0,0.07631403]
[1732930832634,0.052644,96781.0,96780.0,0.0763236]
[1732930833442,0.052644,96781.0,96780.0,0.06980558]
[1732930835930,0.052644,96781.0,96780.0,0.06573274]
[1732930836344,0.052644,96781.0,96780.0,0.06982887]
[1732930839447,0.052644,96781.0,96780.0,0.06987223]
[1732930839635,0.052644,96781.0,96780.0,0.07648663]
[1732930839836,0.052644,96781.0,96780.0,0.03311149]
[1732930840039,0.0527477,96781.0,96780.0,0.03311149]
[1732930840238,0.0527477,96781.0,96764.0,0.30669707]
[1732930840239,0.051654,96764.0,96762.0,0.24672125]
[1732930840442,0.051655,96761.0,96759.0,0.24672125]
[1732930840743,0.051655,96761.0,96758.0,0.3608]
[1732930841332,0.051656,96759.0,96758.0,0.3608]
[1732930843139,0.051656,96759.0,96758.0,0.3668]
[1732930844039,0.052656,96759.0,96758.0,0.3668]
[1732930844839,0.06481936,96759.0,96758.0,0.3668]
[1732930848474,0.21846127,96759.0,96758.0,0.3668]
[1732930849663,0.06481936,96759.0,96758.0,0.3668]
[1732930850248,0.21846127,96759.0,96758.0,0.006]
[1732930850449,0.21841995,96759.0,96758.0,0.006]
[1732930850641,0.24951368,96759.0,96758.0,0.006]
[1732930850840,0.06481936,96759.0,96758.0,0.006]
[1732930851050,0.06481936,96759.0,96742.0,0.00010794]
[1732930851051,0.051665,96743.0,96742.0,0.00010794]
[1732930851254,0.051665,96743.0,96742.0,0.00667576]
[1732930852249,0.052665,96743.0,96742.0,0.01779524]
[1732930853361,0.053665,96743.0,96742.0,0.01779524]
[1732930853559,0.053665,96743.0,96742.0,0.01122742]
[1732930854662,0.053665,96743.0,96742.0,0.02600142]
[1732930854963,0.053665,96743.0,96742.0,0.01779282]
[1732930856564,0.053665,96743.0,96742.0,0.01122742]
[1732930857259,0.06593563,96743.0,96742.0,0.01122742]
[1732930857556,0.06493563,96743.0,96742.0,0.00622742]
[1732930858651,0.06493563,96743.0,96742.0,0.01287943]
[1732930860953,0.06493563,96743.0,96742.0,0.00622742]
[1732930861195,0.06493563,96743.0,96742.0,0.01288734]
[1732930861355,0.06493563,96743.0,96742.0,0.00622742]
[1732930862454,0.06493563,96743.0,96742.0,0.00210794]
[1732930862657,0.06493563,96743.0,96742.0,0.00638146]
[1732930864873,0.01327063,96743.0,96742.0,0.00638146]
[1732930865168,0.01327063,96743.0,96742.0,0.01327884]
[1732930865567,0.01327063,96743.0,96742.0,0.01127884]
[1732930865761,0.01527063,96743.0,96742.0,0.01127884]
[1732930866566,0.01427063,96743.0,96742.0,0.01127884]
[1732930866874,0.01627063,96743.0,96742.0,0.01127884]
[1732930868765,0.01627063,96743.0,96742.0,0.01981696]
[1732930868964,0.01627063,96743.0,96742.0,0.00010794]
[1732930869275,0.01627063,96743.0,96742.0,0.01974214]
[1732930869872,0.01527063,96743.0,96742.0,0.01974214]
[1732930871781,0.06693563,96743.0,96742.0,0.01974214]
[1732930872363,0.06693563,96743.0,96742.0,0.00852628]
[1732930872668,0.06693563,96743.0,96742.0,0.01104835]
[1732930872873,0.01527063,96743.0,96742.0,0.06271335]
[1732930873176,0.003,96743.0,96742.0,0.06271335]
[1732930873364,0.054665,96743.0,96742.0,0.07106074]
[1732930873564,0.054665,96743.0,96742.0,0.01939574]
[1732930874165,0.053665,96743.0,96742.0,0.01939574]
[1732930874983,0.052665,96743.0,96742.0,0.01939574]
[1732930875161,0.053665,96743.0,96742.0,0.01939574]
[1732930877872,0.053665,96743.0,96742.0,0.07106074]
[1732930879272,0.053665,96743.0,96742.0,0.07120119]
[1732930879883,0.053665,96743.0,96742.0,0.01953619]
[1732930882772,0.053665,96743.0,96742.0,0.00010794]
[1732930882972,0.053665,96743.0,96742.0,0.01117722]
[1732930883276,0.053665,96743.0,96742.0,0.01969472]
[1732930883869,0.053665,96743.0,96742.0,0.01117722]
[1732930884071,0.053665,96743.0,96742.0,0.06284222]
[1732930884072,0.002,96743.0,96742.0,0.06284222]
[1732930884281,0.07909512,96743.0,96742.0,0.06284222]
[1732930885176,0.002,96743.0,96742.0,0.06284222]
[1732930886185,0.002,96743.0,96742.0,0.06286443]
[1732930886371,0.053665,96743.0,96742.0,0.06286443]
[1732930886589,0.053665,96743.0,96742.0,0.01119943]
[1732930888679,0.1319478,96743.0,96742.0,0.01119943]
[1732930889475,0.1319478,96743.0,96742.0,0.06286443]
[1732930889476,0.002,96743.0,96742.0,0.06286443]
[1732930889775,0.002,96743.0,96742.0,0.07137446]
[1732930891082,0.001,96743.0,96742.0,0.07137446]
[1732930891587,0.001,96743.0,96742.0,0.07121362]
[1732930891778,0.051661,96750.0,96742.0,0.07121362]
[1732930892082,0.051661,96750.0,96749.0,0.051662]
[1732930892287,0.0123555,96752.0,96751.0,0.05166]
[1732930892579,0.051659,96755.0,96751.0,0.05166]
[1732930892580,0.051659,96755.0,96754.0,0.051659]
[1732930892789,0.051659,96755.0,96754.0,0.07109968]
[1732930893178,0.051659,96755.0,96754.0,0.051659]
[1732930893387,0.051659,96755.0,96754.0,0.07107636]
[1732930894273,0.053659,96755.0,96754.0,0.07107636]
[1732930895682,0.002,96755.0,96754.0,0.07107636]
[1732930895884,0.004,96755.0,96754.0,0.07107636]
[1732930896085,0.055658,96755.0,96754.0,0.07107636]
[1732930896485,0.055658,96755.0,96754.0,0.051659]
[1732930896679,0.06794795,96755.0,96754.0,0.07105703]
[1732930897321,0.06794795,96755.0,96754.0,0.01939803]
[1732930898689,0.06794795,96755.0,96754.0,0.01096261]
[1732930898886,0.06794795,96755.0,96750.0,0.051661]
[1732930898887,0.01628995,96755.0,96750.0,0.051661]
[1732930899093,0.05166,96751.0,96750.0,0.051661]
[1732930899287,0.26523079,96751.0,96750.0,0.0558911]
[1732930899524,0.34358904,96751.0,96750.0,0.0558911]
[1732930899692,0.13001825,96751.0,96750.0,0.0558911]
[1732930900394,0.05166,96751.0,96750.0,0.0559264]
[1732930901985,0.05166,96751.0,96750.0,0.051661]
[1732930902378,0.0304,96754.0,96747.0,0.3608]
[1732930902379,0.082059,96754.0,96753.0,0.051659]
[1732930902886,0.29562979,96754.0,96753.0,0.051659]
[1732930903089,0.082059,96754.0,96753.0,0.05599442]
[1732930903392,0.082059,96754.0,96753.0,0.051659]
[1732930903588,0.082059,96754.0,96753.0,0.05599622]
[1732930903886,0.082059,96754.0,96753.0,0.00433722]
[1732930904191,0.091059,96754.0,96753.0,0.00433722]
[1732930904583,0.090059,96754.0,96753.0,0.00433722]
[1732930904789,0.44974119,96754.0,96753.0,0.00433722]
[1732930904978,0.2361704,96754.0,96753.0,0.00433722]
[1732930905178,0.051664,96745.0,96744.0,0.3608]
[1732930905391,0.051664,96745.0,96744.0,0.37209514]
[1732930905864,0.051664,96745.0,96744.0,0.01129514]
[1732930905994,0.051664,96745.0,96744.0,0.00434368]
[1732930906293,0.051664,96745.0,96744.0,0.01131467]
[1732930906592,0.053664,96745.0,96744.0,0.00434368]
[1732930906787,0.054664,96745.0,96744.0,0.00434368]
[1732930907290,0.054664,96745.0,96744.0,0.02004249]
[1732930908889,0.054664,96745.0,96744.0,0.02005145]
[1732930909594,0.0666128,96745.0,96744.0,0.02005145]
[1732930911689,0.0666128,96745.0,96744.0,0.07171545]
[1732930912281,0.0666128,96745.0,96744.0,0.07187782]
[1732930912483,0.0149488,96745.0,96744.0,0.07187782]
[1732930914194,0.0149488,96745.0,96744.0,0.06308765]
[1732930914792,0.0666128,96745.0,96744.0,0.06308765]
[1732930915597,0.0149488,96745.0,96744.0,0.01137063]
[1732930915799,0.0666128,96745.0,96744.0,0.01137063]
[1732930916703,0.0666128,96745.0,96744.0,0.00437271]
[1732930922200,0.0666128,96745.0,96744.0,0.02008108]
[1732930925601,0.14961576,96745.0,96744.0,0.02008108]
[1732930926192,0.0149488,96745.0,96744.0,0.07174508]
[1732930931603,0.0149488,96745.0,96744.0,0.07265199]
[1732930933201,0.003,96745.0,96744.0,0.07265199]
[1732930933508,0.3608,96766.0,96762.0,0.051655]
[1732930933698,0.3608,96766.0,96762.0,0.07264299]
[1732930934011,0.3608,96777.0,96762.0,0.07264299]
[1732930934398,0.051646,96779.0,96777.0,0.051646]
[1732930934597,0.051646,96779.0,96778.0,0.02098799]
[1732930935104,0.06413398,96779.0,96778.0,0.07243836]
[1732930935696,0.06413398,96779.0,96778.0,0.02079236]
[1732930935900,0.06413398,96779.0,96778.0,0.0117506]
[1732930936301,0.39354087,96779.0,96778.0,0.0117506]
[1732930936532,0.15555373,96779.0,96778.0,0.0117506]
[1732930936708,0.16055373,96779.0,96778.0,0.0117506]
[1732930937109,0.06913398,96779.0,96778.0,0.0117506]
[1732930937300,0.051656,96760.0,96757.0,0.3608]
[1732930937534,0.21521932,96765.0,96758.0,0.01173482]
[1732930937806,0.21521932,96765.0,96757.0,0.3608]
[1732930937807,0.21521932,96766.0,96759.0,0.01173482]
[1732930937999,0.3608,96768.0,96765.0,0.051653]
[1732930938000,0.21521932,96767.0,96765.0,0.051653]
[1732930938203,0.21521932,96767.0,96760.0,0.01173482]
[1732930938204,0.21521932,96767.0,96766.0,0.05616476]
[1732930938498,0.57601932,96768.0,96767.0,0.051652]
[1732930938704,0.62767032,96768.0,96767.0,0.05616476]
[1732930939505,0.57601932,96768.0,96767.0,0.05616476]
[1732930940134,0.58796727,96768.0,96767.0,0.05616476]
[1732930940404,0.37274795,96768.0,96767.0,0.05616476]
[1732930940802,0.42439895,96768.0,96767.0,0.05616476]
[1732930941606,0.06359895,96768.0,96767.0,0.41696476]